bitfinex/quotes_ETHUSD_20240718
["timestamp","ask_amount","ask_price","bid_price","bid_amount"]
[1721313366834,2.90023,3448.0,3446.4,5.521676]
[1721313366835,2.8999,3448.4,3447.1,2.90098]
[1721313366996,2.8999,3448.4,3447.6,2.90056]
[1721313367196,0.5968955,3448.5,3447.7,0.07499397]
[1721313367540,2.89992,3448.4,3447.7,2.90046]
[1721313367696,0.36531985,3448.7,3447.8,0.07494971]
[1721313367697,2.90004,3448.3,3447.8,0.07494971]
[1721313368201,3.26496985,3448.7,3447.7,2.9004]
[1721313368403,3.22622699,3448.6,3447.9,0.07489867]
[1721313368628,3.22622699,3448.6,3447.2,2.90085]
[1721313368629,2.89981,3448.5,3447.8,2.90036]
[1721313368942,0.32649699,3448.6,3448.0,0.07482895]
[1721313369111,0.5968955,3449.1,3447.9,2.9751715]
[1721313369112,2.89948,3448.9,3447.9,2.9751715]
[1721313369444,2.89939,3449.0,3448.0,2.90022]
[1721313369742,0.5968955,3449.4,3448.4,2.89988]
[1721313369743,2.89929,3449.2,3448.4,2.89988]
[1721313369947,2.89929,3449.2,3448.5,2.8998]
[1721313370299,2.89906,3449.4,3448.5,0.07461283]
[1721313370528,2.89915,3449.3,3448.6,2.89966]
[1721313370841,2.89915,3449.3,3448.5,2.97440283]
[1721313371147,2.89915,3449.3,3448.0,2.4939]
[1721313371148,2.89915,3449.3,3448.7,0.07444458]
[1721313371317,2.89881,3449.7,3448.9,2.89941]
[1721313371524,1.19379101,3450.1,3448.6,0.07448711]
[1721313371525,3.4954055,3450.1,3448.6,0.07448711]
[1721313371733,3.4954055,3450.1,3448.0,2.4939]
[1721313371734,2.89914,3449.3,3448.5,2.8998]
[1721313371902,2.89905,3449.4,3448.7,0.07444458]
[1721313372105,2.89905,3449.4,3448.4,2.89988]
[1721313372106,2.89873,3449.8,3449.1,2.89923]
[1721313372355,0.99887487,3450.0,3449.3,2.89905]
[1721313372516,2.89847,3450.1,3449.3,2.89905]
[1721313372720,2.8984,3450.2,3449.4,2.89904]
[1721313372950,2.89826,3450.4,3449.6,2.89888]
[1721313373118,2.89826,3450.4,3448.9,5.19257]
[1721313373119,2.89815,3450.5,3449.8,2.89871]
[1721313373321,2.89796,3450.7,3450.0,2.89848]
[1721313373322,2.89797,3450.7,3450.0,2.89848]
[1721313373507,2.89784,3450.9,3450.0,2.89848]
[1721313373712,2.89788,3450.8,3450.1,2.89844]
[1721313373910,2.89804,3450.6,3450.1,0.07337739]
[1721313374160,2.89772,3451.0,3450.1,0.07337739]
[1721313374444,2.89728,3451.6,3449.9,2.3493]
[1721313374445,2.89797,3450.7,3449.9,2.3493]
[1721313374646,2.89819,3450.5,3450.2,0.07333489]
[1721313374860,0.289797,3450.6,3449.4,2.3493]
[1721313375029,0.289797,3450.6,3449.9,2.89861]
[1721313375348,2.4293,3451.7,3450.3,2.89829]
[1721313375657,2.4293,3451.7,3449.6,2.89882]
[1721313375658,2.8981,3450.6,3450.4,0.0732499]
[1721313375899,8.69439,3450.5,3450.4,0.0732499]
[1721313376023,3.296,3450.5,3448.5,2.31048589]
[1721313376213,2.89877,3449.8,3448.7,2.89964]
[1721313376413,2.89827,3450.4,3448.8,0.05798106]
[1721313376723,2.3969,3450.7,3449.4,2.89901]
[1721313376925,2.89824,3450.4,3449.6,2.89888]
[1721313377260,2.89806,3450.6,3448.8,0.05797152]
[1721313377465,2.8978,3450.9,3450.0,2.89849]
[1721313377466,2.89793,3450.8,3450.0,2.89849]
[1721313377642,0.579573,3450.7,3450.0,2.89853]
[1721313377811,2.89748,3451.3,3450.3,2.89823]
[1721313378008,2.89743,3451.4,3450.1,2.89845]
[1721313378206,2.89743,3451.4,3449.5,2.4594]
[1721313378207,2.89748,3451.3,3450.3,2.89827]
[1721313378445,2.89764,3451.1,3449.8,2.89865]
[1721313378645,2.89764,3451.1,3449.5,2.4594]
[1721313378646,2.89766,3451.1,3449.7,2.89878]
[1721313378824,2.3033,3451.7,3449.5,5.35829]
[1721313378825,5.79617,3450.6,3449.6,2.89888]
[1721313379019,2.89807,3450.6,3449.8,2.89871]
[1721313379364,2.8979,3450.8,3449.5,2.4594]
[1721313379583,0.289766,3451.0,3449.9,2.8986]
[1721313379584,2.8978,3450.9,3449.9,2.8986]
[1721313379863,2.89794,3450.8,3450.0,2.89854]
[1721313380085,2.8978,3450.9,3449.5,5.35828]
[1721313380229,2.89782,3450.9,3449.5,2.4594]
[1721313380415,0.289766,3451.0,3449.5,2.4594]
[1721313380615,2.89808,3450.6,3449.2,2.89915]
[1721313380853,2.3794,3450.6,3449.2,2.89915]
[1721313381015,2.89844,3450.2,3448.6,2.89969]
[1721313381226,2.89878,3449.8,3448.5,2.8998]
[1721313381425,0.289844,3450.1,3448.4,2.89988]
[1721313381662,2.89929,3449.2,3448.4,2.89988]
[1721313382078,0.289844,3450.1,3448.3,2.2977]
[1721313382370,0.289844,3450.1,3448.1,2.90013]
[1721313382371,2.89964,3448.7,3448.1,2.90013]
[1721313382529,2.89939,3449.0,3448.1,2.90013]
[1721313382729,2.89939,3449.0,3447.5,2.2597]
[1721313382730,2.89907,3449.4,3448.6,2.89966]
[1721313382951,2.89907,3449.4,3448.4,0.06412538]
[1721313382952,2.89907,3449.4,3448.7,2.89963]
[1721313383249,2.8038284,3450.0,3448.7,2.89963]
[1721313383250,2.89861,3450.0,3449.1,2.89928]
[1721313383440,2.89823,3450.4,3449.5,2.89896]
[1721313383846,2.89789,3450.8,3450.0,2.89849]
[1721313384180,3.187496,3451.0,3450.0,2.89849]
[1721313384181,2.89797,3450.7,3450.0,2.89849]
[1721313384338,2.89782,3450.9,3450.1,0.06340254]
[1721313384652,2.89782,3450.9,3448.7,5.3751]
[1721313384653,2.8978,3450.9,3448.9,2.89947]
[1721313384858,2.89895,3449.6,3448.3,2.8999]
[1721313385165,2.89914,3449.3,3448.6,2.89966]
[1721313385473,2.3798,3450.2,3448.2,2.90004]
[1721313385762,2.3798,3450.2,3448.0,2.4541]
[1721313385763,2.89941,3449.0,3448.4,2.89989]
[1721313385985,2.89941,3449.0,3448.0,2.4541]
[1721313386202,2.89941,3449.0,3448.2,2.89998]
[1721313386496,2.89924,3449.2,3447.4,2.95864127]
[1721313386497,2.4866,3449.2,3447.6,2.90054]
[1721313386797,2.90005,3448.3,3447.6,2.90054]
[1721313386945,2.4866,3449.2,3446.9,2.90108]
[1721313386946,2.8999,3448.4,3446.9,2.90108]
[1721313387149,0.28999,3448.3,3447.0,2.90106]
[1721313387382,2.89979,3448.6,3446.9,0.290108]
[1721313387708,2.4866,3449.2,3446.9,0.290108]
[1721313387709,2.90015,3448.1,3447.4,2.90073]
[1721313388002,2.89995,3448.4,3446.9,0.290108]
[1721313388003,2.89992,3448.4,3446.9,0.290108]
[1721313388147,2.89963,3448.8,3446.9,0.290108]
[1721313388148,2.9006,3447.6,3446.9,0.290108]
[1721313388686,2.90065,3447.6,3446.4,0.290166]
[1721313388890,2.90065,3447.6,3446.5,2.90143]
[1721313388891,2.90074,3447.4,3446.5,2.90143]
[1721313389097,2.90074,3447.4,3446.4,0.290166]
[1721313389098,2.90041,3447.8,3446.7,2.90124]
[1721313389391,2.90041,3447.8,3446.8,2.90121]
[1721313389392,2.90058,3447.6,3446.8,2.90121]
[1721313389586,2.9004,3447.8,3446.8,2.90121]
[1721313389587,2.90052,3447.7,3446.8,2.90121]
[1721313389779,2.90035,3447.9,3446.9,2.90115]
[1721313389984,2.90041,3447.8,3447.0,2.901]
[1721313390356,2.90063,3447.6,3446.7,2.90132]
[1721313390556,2.90049,3447.7,3446.8,0.06286185]
[1721313390789,2.90054,3447.7,3446.8,0.06286185]
[1721313390959,0.289992,3448.3,3446.9,0.29641819]
[1721313390960,2.90015,3448.1,3446.9,0.29641819]
[1721313391298,2.90059,3447.6,3447.0,0.06277669]
[1721313391469,2.90043,3447.8,3447.0,2.96382669]
[1721313391662,7.28,3448.4,3447.5,2.9006]
[1721313391865,7.28,3448.4,3447.0,0.06277669]
[1721313391866,2.89991,3448.4,3447.3,2.90077]
[1721313392179,2.90015,3448.1,3447.4,0.06260641]
[1721313392367,3.435221,3448.3,3446.9,0.29641819]
[1721313392568,3.435221,3448.3,3447.6,2.90054]
[1721313392569,2.89999,3448.3,3447.6,2.90054]
[1721313392950,10.28,3448.8,3446.8,2.90117]
[1721313392951,2.89972,3448.6,3447.5,2.90057]
[1721313393156,2.8999,3448.4,3447.7,2.90042]
[1721313393387,10.28,3448.8,3447.8,0.06243617]
[1721313393388,2.90004,3448.3,3447.8,0.06243617]
[1721313393629,2.89965,3448.7,3446.9,2.3807]
[1721313393789,2.89965,3448.7,3447.7,2.90046]
[1721313393986,7.28,3448.8,3447.8,0.06243617]
[1721313393987,2.89974,3448.6,3447.8,0.06243617]
[1721313394313,7.28,3448.8,3447.8,0.06243617]
[1721313394314,2.90003,3448.3,3447.8,0.06243617]
[1721313394488,2.90031,3447.9,3447.8,0.06243617]
[1721313394675,2.90031,3447.9,3446.9,2.9011]
[1721313394676,2.90045,3447.8,3447.0,2.90105]
[1721313394874,2.9004,3447.8,3446.9,2.9011]
[1721313395112,2.9004,3447.8,3447.1,0.06273412]
[1721313395324,16.47559,3448.8,3447.0,2.90104]
[1721313395325,13.576,3448.8,3447.2,2.90089]
[1721313395484,2.90021,3448.1,3447.3,2.90081]
[1721313395691,3.0,3448.7,3447.1,2.90098]
[1721313395692,2.90032,3447.9,3447.1,2.90098]
[1721313395982,2.90031,3447.9,3447.1,2.90098]
[1721313396183,2.90031,3447.9,3447.2,0.06269155]
[1721313396381,2.90016,3448.1,3447.4,2.90073]
[1721313396727,2.90016,3448.1,3447.5,0.06256385]
[1721313396728,3.480176,3448.1,3447.5,0.06256385]
[1721313396887,2.90025,3448.0,3447.5,0.06256385]
[1721313397084,0.580016,3448.1,3447.5,0.06256385]
[1721313397414,0.580016,3448.1,3447.6,0.06252129]
[1721313397578,2.90014,3448.2,3447.6,0.06252129]
[1721313397785,2.90015,3448.1,3447.5,2.90057]
[1721313398006,2.90024,3448.0,3447.7,0.06305781]
[1721313398227,2.90024,3448.0,3447.6,0.06310036]
[1721313398541,2.90012,3448.2,3447.8,0.06301525]
[1721313398827,2.89995,3448.4,3447.9,0.06297269]
[1721313399239,0.728,3448.7,3447.0,2.90101]
[1721313399407,0.728,3448.7,3446.4,5.572386]
[1721313399408,2.2979,3447.9,3446.4,0.290166]
[1721313399615,2.2979,3447.9,3446.4,3.191666]
[1721313399616,2.90048,3447.7,3446.4,3.191666]
[1721313399829,2.90095,3447.2,3446.4,3.191666]
[1721313399992,2.90104,3447.1,3446.4,3.191666]
[1721313400192,2.90096,3447.2,3446.4,3.191666]
[1721313400421,2.90096,3447.2,3446.5,2.90143]
[1721313400611,2.90096,3447.2,3446.6,2.90139]
[1721313400820,2.90063,3447.6,3446.8,2.90118]
[1721313401055,7.28,3447.7,3446.4,3.191706]
[1721313401343,7.28,3447.7,3446.5,2.90149]
[1721313401344,2.90104,3447.1,3446.5,2.90149]
[1721313401550,10.18052,3447.7,3446.5,2.90149]
[1721313401551,2.90093,3447.2,3446.5,2.90149]
[1721313402253,2.90093,3447.2,3446.3,2.90164]
[1721313402254,2.90093,3447.2,3446.6,2.9014]
[1721313402551,2.90074,3447.4,3446.7,2.90131]
[1721313402710,2.90074,3447.4,3446.6,2.9014]
[1721313402711,2.90067,3447.5,3446.8,2.90118]
[1721313403027,1.247829,3447.6,3446.7,2.90132]
[1721313403566,2.90096,3447.2,3446.3,2.90159]
[1721313403771,4.148399,3447.6,3445.9,2.43872375]
[1721313404060,7.28,3447.7,3445.9,2.43872375]
[1721313404351,7.28,3448.6,3447.2,2.9009]
[1721313404554,7.28,3448.6,3447.0,2.90106]
[1721313404555,2.89995,3448.4,3447.0,2.90106]
[1721313404722,0.728,3448.7,3446.7,0.05800273]
[1721313404723,2.89982,3448.5,3447.6,2.9005]
[1721313404927,0.728,3448.7,3447.9,2.90031]
[1721313404928,2.89975,3448.6,3447.9,2.90031]
[1721313405108,2.89975,3448.6,3447.1,0.290106]
[1721313405109,2.90007,3448.2,3447.6,2.90056]
[1721313405310,2.90003,3448.3,3447.4,2.90073]
[1721313405554,2.90056,3447.7,3447.0,2.90106]
[1721313405723,3.4960555,3449.3,3447.1,0.05801413]
[1721313405930,2.89962,3448.8,3448.0,2.90017]
[1721313406166,2.89972,3448.6,3447.9,2.9003]
[1721313406391,2.89972,3448.6,3448.0,0.06092417]
[1721313406545,3.479664,3448.6,3448.0,0.06092417]
[1721313406745,2.89999,3448.3,3446.9,5.343]
[1721313407063,2.89999,3448.3,3447.4,2.90065]
[1721313407064,2.90015,3448.1,3447.4,2.90065]
[1721313407477,2.90032,3447.9,3447.5,0.06113695]
[1721313407985,2.90045,3447.8,3447.6,0.06109439]
[1721313408189,2.90045,3447.8,3447.1,2.90098]
[1721313408351,2.90022,3448.1,3447.2,2.96215465]
[1721313408569,2.90049,3447.7,3447.0,2.90099]
[1721313408770,2.90038,3447.9,3447.2,2.9009]
[1721313409091,2.90038,3447.9,3447.3,2.96203208]
[1721313409092,2.90032,3447.9,3447.3,2.96203208]
[1721313409498,7.28,3448.4,3447.3,0.06122208]
[1721313409670,0.7859934,3448.3,3447.3,0.06122208]
[1721313409872,2.90055,3447.7,3447.3,0.06122208]
[1721313410194,0.7859934,3448.3,3447.4,0.06117952]
[1721313410504,2.90062,3447.6,3446.8,2.90118]
[1721313410714,2.90082,3447.3,3446.6,2.90139]
[1721313410921,2.4379,3447.8,3446.9,0.06139237]
[1721313410922,2.90098,3447.2,3446.9,0.06139237]
[1721313411099,2.90098,3447.2,3445.8,5.677415]
[1721313411100,2.90107,3447.0,3446.3,2.90166]
[1721313411286,2.90054,3447.7,3446.3,0.580348]
[1721313411287,2.90083,3447.3,3446.3,0.580348]
[1721313411634,2.90054,3447.7,3446.4,0.06160529]
[1721313411635,2.9015,3446.5,3446.4,0.06160529]
[1721313412089,2.90141,3446.6,3445.8,2.90207]
[1721313412275,2.90158,3446.4,3445.5,2.90232]
[1721313412477,2.90183,3446.1,3445.9,0.06181828]
[1721313412682,2.90191,3446.0,3444.9,0.1516676]
[1721313413126,2.90146,3446.6,3445.0,0.05804294]
[1721313413280,2.90154,3446.5,3445.8,2.90202]
[1721313413716,2.3688,3446.9,3445.6,2.90223]
[1721313413879,2.90149,3446.5,3445.7,2.90215]
[1721313414080,2.90149,3446.5,3445.4,2.90239]
[1721313414419,2.90197,3446.0,3445.3,2.90249]
[1721313414580,2.902,3445.9,3445.3,2.90249]
[1721313414915,2.3688,3446.9,3445.1,2.90266]
[1721313414916,2.90218,3445.7,3445.1,2.90266]
[1721313415117,2.90218,3445.7,3445.1,3.49859986]
[1721313415324,2.90204,3445.9,3445.1,0.59593986]
[1721313415494,7.28,3446.3,3444.9,0.20971376]
[1721313415817,7.28,3446.3,3445.3,2.90248]
[1721313415995,7.28,3446.3,3445.7,2.90208]
[1721313416210,2.90175,3446.2,3444.9,0.1516676]
[1721313416450,2.90208,3445.8,3444.9,3.0544876]
[1721313416601,2.90196,3446.0,3445.0,3.20840486]
[1721313416908,2.9023,3445.6,3444.9,3.0544976]
[1721313417111,7.28,3446.3,3444.9,3.0544976]
[1721313417112,2.90252,3445.3,3444.9,0.1516676]
[1721313417514,2.90234,3445.5,3444.9,0.1516676]
[1721313417720,2.90251,3445.3,3444.9,0.1516676]
[1721313417905,2.90259,3445.2,3444.9,0.1516676]
[1721313418328,2.90272,3445.1,3444.9,0.1516676]
[1721313418836,2.90244,3445.4,3444.9,0.1516676]
[1721313419252,0.290244,3445.4,3444.9,0.1516676]
[1721313419402,2.90232,3445.6,3444.9,0.1516676]
[1721313419711,8.1598,3445.0,3444.9,0.1516676]
[1721313420318,5.6503,3445.0,3443.3,7.32]
[1721313420504,5.6503,3445.0,3443.3,2.90412]
[1721313420505,2.90353,3444.1,3443.3,2.90412]
[1721313420705,2.90335,3444.3,3442.4,2.90492]
[1721313420706,2.90335,3444.3,3443.4,0.34888033]
[1721313421049,2.90319,3444.5,3443.6,2.90388]
[1721313421245,2.90352,3444.1,3442.3,2.3413]
[1721313421446,2.9036,3444.0,3443.7,0.05834034]
[1721313421654,7.28,3444.7,3442.9,2.90448]
[1721313421943,3.0,3444.9,3443.8,0.05829769]
[1721313421944,2.90364,3444.0,3443.8,0.05829769]
[1721313422144,2.90364,3444.0,3442.3,2.3413]
[1721313422145,0.290364,3444.0,3442.3,2.3413]
[1721313422322,7.28,3444.7,3442.4,2.90494]
[1721313422323,2.90404,3443.5,3442.4,2.90494]
[1721313422644,2.90425,3443.3,3442.7,2.90469]
[1721313422812,2.90404,3443.5,3442.7,2.90469]
[1721313422813,2.90413,3443.4,3442.7,2.90469]
[1721313423152,2.3476,3443.8,3442.8,0.05872436]
[1721313423351,7.28,3444.0,3442.8,2.96326436]
[1721313423505,2.3476,3444.5,3443.3,2.90411]
[1721313423506,2.90345,3444.2,3443.3,2.90411]
[1721313423706,2.3476,3444.5,3444.3,2.90331]
[1721313423912,2.3476,3445.1,3444.3,2.90334]
[1721313424129,6.14503325,3445.8,3444.8,2.90286]
[1721313424446,6.14503325,3445.8,3444.9,0.05815194]
[1721313424447,3.24294325,3445.8,3444.9,0.05815194]
[1721313424617,3.24294325,3445.8,3445.4,2.90235]
[1721313424833,0.89534325,3445.8,3444.5,0.05804828]
[1721313425022,0.89534325,3445.8,3445.5,0.05719994]
[1721313425234,0.89534325,3445.8,3445.4,2.90237]
[1721313425440,0.89534325,3445.8,3445.5,0.05719994]
[1721313425811,0.89534325,3445.8,3444.9,2.90284]
[1721313426048,0.89534325,3445.8,3445.1,2.90265]
[1721313426347,1.15570448,3445.6,3445.0,0.05741303]
[1721313426545,2.90259,3445.2,3444.3,2.90332]
[1721313426748,3.4991955,3445.6,3444.7,2.90294]
[1721313426912,0.5968955,3445.6,3444.7,2.90294]
[1721313427117,2.90242,3445.4,3444.7,2.90294]
[1721313427458,2.90242,3445.4,3444.8,0.05749829]
[1721313427821,0.5968955,3445.6,3444.8,0.05749829]
[1721313428025,0.5968955,3445.6,3445.1,2.90261]
[1721313428230,0.5968955,3445.6,3445.0,2.90274]
[1721313428552,10.18173,3446.3,3445.4,2.90236]
[1721313428849,10.18173,3446.3,3445.2,0.05732779]
[1721313428850,2.90173,3446.3,3445.5,2.90232]
[1721313429012,2.90151,3446.5,3445.5,2.90232]
[1721313429219,2.90151,3446.5,3445.6,0.05715733]
[1721313429414,2.90134,3446.7,3445.6,0.05715733]
[1721313429610,0.520764,3446.5,3446.0,2.90185]
[1721313429832,2.90124,3446.8,3446.1,0.05694431]
[1721313430054,2.9011,3447.0,3446.1,0.05694431]
[1721313430210,2.90101,3447.1,3445.6,0.05803548]
[1721313430415,7.28,3447.5,3446.8,2.90118]
[1721313430649,2.90048,3447.7,3447.0,2.90105]
[1721313430839,0.2976596,3447.3,3447.1,2.90098]
[1721313431016,0.2976596,3447.3,3447.1,0.05636773]
[1721313431234,0.2976596,3447.3,3446.8,2.90123]
[1721313431532,0.2976596,3447.3,3447.0,2.90105]
[1721313431933,0.2976596,3447.3,3446.8,2.90123]
[1721313432129,0.2976596,3447.3,3446.9,2.90114]
[1721313432434,3.22838556,3447.2,3446.9,0.05634407]
[1721313432634,3.22833556,3447.2,3446.9,0.05634407]
[1721313432854,3.22833556,3447.2,3446.5,2.90148]
[1721313433058,2.90104,3447.1,3446.3,2.90161]
[1721313433367,2.90117,3446.9,3446.6,0.05639483]
[1721313433532,0.580216,3446.8,3446.6,0.05639483]
[1721313433737,2.90102,3447.1,3446.2,2.90167]
[1721313433939,2.90113,3447.0,3446.7,0.05634221]
[1721313434161,0.32742556,3447.2,3446.6,2.9014]
[1721313434487,0.32742556,3447.2,3446.7,0.05636396]
[1721313434635,2.976596,3447.4,3447.0,2.90105]
[1721313434829,2.976596,3447.4,3447.1,2.90096]
[1721313435075,2.976596,3447.4,3447.3,2.90082]
[1721313435569,2.976596,3447.4,3447.3,2.95645958]
[1721313435769,2.976596,3447.4,3447.3,5.85727958]
[1721313435956,2.976596,3447.4,3447.3,6.57582053]
[1721313436350,2.976596,3447.4,3447.3,5.85727958]
[1721313436551,2.976596,3447.4,3447.3,2.95645958]
[1721313436747,8.778056,3447.4,3447.3,0.05563958]
[1721313437069,2.90128,3446.8,3445.8,2.90205]
[1721313437256,2.90147,3446.6,3445.8,2.90205]
[1721313437443,3.191687,3446.5,3445.9,0.05613371]
[1721313437646,2.90158,3446.4,3445.9,0.05613371]
[1721313437882,2.90158,3446.4,3445.7,2.90215]
[1721313438090,2.90158,3446.4,3445.0,0.580552]
[1721313438091,5.80366,3446.1,3446.0,0.05609111]
[1721313438244,5.80366,3446.1,3444.5,7.32]
[1721313438245,2.90183,3446.1,3444.5,7.32]
[1721313438453,2.90183,3446.1,3445.3,2.9025]
[1721313438647,2.4941,3446.2,3445.6,2.90219]
[1721313438886,2.4941,3446.2,3445.4,0.05529458]
[1721313439060,2.4941,3446.2,3445.7,0.05516674]
[1721313439061,0.829738,3446.1,3445.7,0.05516674]
[1721313439267,2.90205,3445.9,3445.0,2.90272]
[1721313439545,2.90217,3445.7,3444.7,2.90299]
[1721313439797,2.90239,3445.5,3445.1,0.05542243]
[1721313439970,2.90239,3445.5,3444.6,2.90307]
[1721313439971,2.90204,3445.9,3444.4,2.90322]
[1721313440145,2.90244,3445.4,3445.2,0.05537981]
[1721313440349,2.90244,3445.4,3444.5,2.90316]
[1721313440350,3.192744,3445.3,3444.5,2.90316]
[1721313440713,2.9026,3445.2,3444.5,2.90316]
[1721313440996,0.290244,3445.3,3444.8,2.90291]
[1721313441176,2.90205,3445.9,3444.8,2.90291]
[1721313441177,2.90205,3445.9,3445.0,2.90275]
[1721313441490,2.90226,3445.6,3444.2,2.9034]
[1721313441691,2.90211,3445.8,3444.3,2.90331]
[1721313441896,7.28,3446.0,3445.4,2.90236]
[1721313442053,5.39585,3446.2,3445.4,2.90239]
[1721313442247,0.539585,3446.1,3445.2,0.05804529]
[1721313442451,2.4941,3446.2,3445.5,2.95793691]
[1721313442688,5.39584,3446.2,3445.3,2.90248]
[1721313442861,2.90218,3445.7,3445.6,0.0555843]
[1721313443061,2.90218,3445.7,3444.9,2.90283]
[1721313443265,2.90213,3445.8,3444.9,2.90283]
[1721313443266,2.90227,3445.6,3444.9,2.90283]
[1721313443586,2.90227,3445.6,3443.9,3.0]
[1721313443587,2.90247,3445.4,3445.0,0.05577636]
[1721313443752,2.9025,3445.3,3445.0,0.05577636]
[1721313443961,3.48274,3445.6,3444.6,2.90306]
[1721313444189,2.90234,3445.5,3445.1,0.05573374]
[1721313444395,2.90237,3445.5,3444.7,2.903]
[1721313444685,2.90237,3445.5,3444.4,2.90319]
[1721313444686,2.9025,3445.3,3445.2,0.05570619]
[1721313444886,0.638499,3445.4,3444.7,2.903]
[1721313445053,7.28,3446.0,3444.0,2.90355]
[1721313445251,2.90158,3446.4,3445.5,2.90225]
[1721313445500,2.90158,3446.4,3444.7,2.90292]
[1721313445501,2.90181,3446.2,3444.7,2.90292]
[1721313445663,2.90158,3446.4,3445.6,0.05580862]
[1721313445863,0.580301,3446.3,3445.6,0.05804101]
[1721313446068,2.90109,3447.0,3446.1,2.90177]
[1721313446270,2.90109,3447.0,3445.1,2.90266]
[1721313446271,7.28,3447.1,3445.1,2.90259]
[1721313446493,5.80332,3446.3,3446.2,0.05555301]
[1721313446762,5.80332,3446.3,3444.1,8.34661]
[1721313446763,2.90151,3446.5,3445.7,2.90216]
[1721313447064,10.18115,3447.0,3446.2,2.90172]
[1721313447065,7.28,3447.0,3446.2,2.90172]
[1721313447396,2.4506,3447.3,3446.2,0.290172]
[1721313447702,2.90091,3447.2,3446.5,2.90143]
[1721313447882,2.90101,3447.1,3445.8,2.90201]
[1721313448073,2.4506,3447.3,3446.6,0.0552939]
[1721313448276,2.4506,3447.3,3446.4,2.90152]
[1721313448277,2.90099,3447.1,3446.4,2.90152]
[1721313448590,7.28,3447.7,3446.8,2.90124]
[1721313448792,2.90059,3447.6,3446.8,2.90124]
[1721313448975,2.9008,3447.4,3446.7,2.90131]
[1721313449168,2.90059,3447.6,3446.9,0.05516615]
[1721313449369,2.90059,3447.6,3446.9,2.9011]
[1721313449584,2.4673,3447.9,3446.7,2.90132]
[1721313449585,3.480751,3447.5,3447.0,0.05512358]
[1721313449798,3.480751,3447.5,3446.8,2.90122]
[1721313450025,3.480751,3447.5,3444.8,0.60419884]
[1721313450026,2.90107,3447.0,3446.9,0.05516615]
[1721313450253,0.580101,3447.5,3445.3,2.4937]
[1721313450386,2.9011,3447.0,3446.2,2.90174]
[1721313450591,2.90083,3447.3,3446.3,0.05542167]
[1721313450888,2.90091,3447.2,3446.4,2.90152]
[1721313451122,0.7860101,3447.4,3445.6,2.90219]
[1721313451451,2.90112,3447.0,3445.9,2.90197]
[1721313451602,0.7860101,3447.4,3445.0,3.057]
[1721313451603,3.48139,3446.9,3446.1,2.90181]
[1721313451787,2.90142,3446.6,3446.2,0.05546426]
[1721313452010,2.2703,3446.8,3445.4,2.90239]
[1721313452011,5.80332,3446.3,3445.4,2.90239]
[1721313452192,2.90166,3446.3,3445.2,2.90251]
[1721313452499,2.90188,3446.1,3445.3,0.05584771]
[1721313452929,2.90188,3446.1,3445.2,2.90258]
[1721313452930,0.285051,3446.7,3444.7,2.477]
[1721313453095,2.2703,3446.8,3445.9,2.90197]
[1721313453297,2.2703,3446.8,3446.2,2.90173]
[1721313453609,2.90093,3447.2,3446.3,2.90165]
[1721313453820,2.90093,3447.2,3446.5,2.90148]
[1721313453989,2.4975,3447.3,3446.6,0.0552939]
[1721313454190,3.22933101,3447.2,3446.4,2.90156]
[1721313454391,0.32835101,3447.2,3444.5,0.90629826]
[1721313454645,0.32835101,3447.2,3446.3,2.9016]
[1721313454926,0.59739667,3447.8,3447.0,2.90106]
[1721313454927,2.90041,3447.8,3447.0,2.90106]
[1721313455131,2.90041,3447.8,3445.8,5.39887807]
[1721313455132,2.90041,3447.8,3446.8,2.90122]
[1721313455334,2.2585,3447.9,3445.8,5.34085]
[1721313455335,2.2585,3447.9,3447.1,0.055081]
[1721313455500,2.2585,3447.9,3446.9,2.90107]
[1721313455501,2.90045,3447.8,3446.9,2.90107]
[1721313455709,5.15889,3447.9,3447.2,0.05503843]
[1721313455710,2.90081,3447.4,3447.2,0.05503843]
[1721313455905,0.290081,3447.3,3446.5,2.90144]
[1721313456091,0.290081,3447.3,3446.0,2.90183]
[1721313456092,2.90104,3447.1,3446.0,2.90189]
[1721313456299,2.90104,3447.1,3446.2,2.90174]
[1721313456493,0.290081,3447.3,3446.5,2.90149]
[1721313456733,0.290081,3447.3,3446.5,2.90144]
[1721313456935,2.90041,3447.8,3446.5,2.90149]
[1721313457154,0.59739667,3448.3,3446.8,2.90123]
[1721313457307,2.90007,3448.2,3447.4,2.90068]
[1721313457509,2.90007,3448.2,3446.5,2.95949518]
[1721313457510,2.89999,3448.3,3446.9,0.05490835]
[1721313457694,2.90045,3447.8,3447.5,0.05465293]
[1721313457933,2.90028,3448.0,3446.3,2.4241]
[1721313457934,3.425579,3448.2,3447.4,2.90067]
[1721313458145,3.425579,3448.2,3447.6,0.05461037]
[1721313458429,0.525479,3448.2,3447.5,0.05465293]
[1721313458632,2.3548,3448.4,3447.6,2.90056]
[1721313458806,2.3548,3448.4,3447.8,2.90039]
[1721313459005,2.89965,3448.7,3447.9,2.90028]
[1721313459213,2.89947,3448.9,3448.2,2.90006]
[1721313459395,0.822379,3448.8,3448.4,2.89989]
[1721313459595,0.822379,3448.8,3448.5,0.05391785]
[1721313459827,0.822379,3448.8,3448.0,2.9002]
[1721313459828,5.32444,3449.0,3448.1,2.90014]
[1721313460035,5.32444,3449.0,3448.5,2.89978]
[1721313460036,2.425,3449.0,3448.5,2.89978]
[1721313460197,2.89914,3449.3,3448.6,0.05387531]
[1721313460398,2.89899,3449.5,3448.6,0.05387531]
[1721313460704,2.4809,3449.6,3448.3,2.89989]
[1721313461001,0.24809,3449.5,3448.9,2.89947]
[1721313461374,0.24809,3449.5,3449.0,0.05365669]
[1721313461571,0.24809,3449.5,3449.0,2.95298669]